fUSD/lending_fUSD_20240722
["ID","MTS","AMOUNT","RATE_DAILY","PERIOD"]
[332897943,1721658632860,-174.430271,0.00011548,2]
[332897945,1721658632870,-1385.0,0.000116,2]
[332897947,1721658632880,-317.014,0.00011685,2]
[332897949,1721658632890,-1683.432663,0.00011692,2]
[332897951,1721658632900,-1990.543366,0.00011692,2]
[332897953,1721658632910,-1882.560481,0.00011692,2]
[332897955,1721658632920,-500.0,0.00011698,2]
[332897956,1721658632930,-860.03311,0.0001178,2]
[332897958,1721658632940,-420.0,0.00011781,2]
[332897960,1721658632950,-6351.93281644,0.000118,2]
[332897962,1721658632964,-355.07256998,0.000118,2]
[332897963,1721658632974,-2452.46255979,0.000118,2]
[332897964,1721658632987,-7133.67684021,0.000118,2]
[332897965,1721658632998,-1000.0,0.000118,2]
[332897966,1721658633009,-5000.0,0.000118,2]
[332897967,1721658633020,-330.12464555,0.000118,2]
[332897968,1721658633031,-1840.16076065,0.000118,2]
[332897969,1721658633043,-171.29269954,0.000118,2]
[332897970,1721658633053,-1913.05938326,0.000118,2]
[332897971,1721658633063,-3567.02454803,0.000118,2]
[332897972,1721658633074,-180.19668508,0.000118,2]
[332897973,1721658633092,-500.0,0.00011804,2]
[332897974,1721658633103,-500.0,0.00011805,2]
[332897975,1721658633113,-220.33,0.00011808,2]
[332897976,1721658633124,-500.0,0.00011821,2]
[332897977,1721658633134,-500.0,0.0001183,2]
[332897978,1721658633145,-179.552243,0.00011837,2]
[332897979,1721658633156,-178.360792,0.00011837,2]
[332897980,1721658633166,-1683.432663,0.00011837,2]
[332897981,1721658633177,-1990.543366,0.00011837,2]
[332897982,1721658633187,-1882.560481,0.00011837,2]
[332897983,1721658633199,-500.0,0.00011838,2]
[332897984,1721658633211,-500.0,0.00011847,2]
[332897985,1721658633222,-155.0,0.0001185,2]
[332897986,1721658633233,-500.0,0.00011856,2]
[332897987,1721658633245,-500.0,0.00011865,2]
[332897988,1721658633255,-500.0,0.00011874,2]
[332897989,1721658633266,-8401.88489266,0.0001188,2]
[332897990,1721658633279,-706.11031433,0.0001188,2]
[332898085,1721658639201,-7089.56215671,0.0001188,2]
[332898200,1721658640443,-2383.29549388,0.00011206,2]
[332898201,1721658640453,-4056.21541108,0.0001188,2]
[332898202,1721658640465,-2168.59643,0.0001188,2]
[332898203,1721658640477,-1160.64995928,0.0001188,2]
[332898330,1721658642507,-348.33,0.0001188,2]
[332898348,1721658643286,-380.0,0.0001188,2]
[332898349,1721658643298,-9815.28824694,0.0001188,2]
[332898350,1721658643307,-500.0,0.00011882,2]
[332898351,1721658643317,-200.41286543,0.0001189,2]
[332898352,1721658643326,-22.83347402,0.00011891,2]
[332898353,1721658643341,-477.16652598,0.00011891,2]
[332898354,1721658643350,-509.95462894,0.00011898,2]
[332898355,1721658643426,-3489.24353956,0.00011898,2]
[332898356,1721658643437,-233.14058094,0.00011898,2]
[332898357,1721658643447,-320.29617739,0.00011899,2]
[332898358,1721658643456,-1514.25936417,0.00011899,2]
[332898359,1721658643466,-1283.8038775,0.000119,2]
[332898380,1721658646267,-168.23,0.00011418,2]
[332898382,1721658646277,-520.64014568,0.000119,2]
[332898411,1721658646563,-838.875,0.000119,2]
[332898413,1721658646575,-3456.26344262,0.000119,2]
[332898415,1721658646592,-851.33674819,0.000119,2]
[332898442,1721659301554,384.79,8.898e-05,2]
[332898443,1721659365296,20360.98956619,8.898e-05,2]
[332898444,1721659365413,7567.44529459,8.898e-05,2]
[332898445,1721659365461,200.29298943,8.854e-05,2]
[332898446,1721659370235,184299.8952056,8.898e-05,2]
[332898447,1721659426462,411.33715233,8.898e-05,2]
[332898464,1721659443921,411.33715233,8.898e-05,2]
[332898465,1721659458882,7567.44529459,8.898e-05,2]
[332898466,1721659474391,20360.98956619,8.898e-05,2]
[332898467,1721659527233,39525.11580091,8.898e-05,2]
[332898468,1721659540052,7567.44529459,8.898e-05,2]
[332898469,1721659542324,411.33715233,8.898e-05,2]
[332898470,1721659572416,12223.98508541,8.898e-05,2]
[332898486,1721659647252,7567.44529459,8.898e-05,2]
[332898487,1721659648443,411.33715233,8.898e-05,2]
[332898490,1721659736989,7567.44529459,8.898e-05,2]
[332898491,1721659746361,411.33715233,8.898e-05,2]
[332898493,1721659811920,7567.44529459,8.898e-05,2]
[332898527,1721659832997,-300.0,0.00010316,2]
[332898528,1721659833007,-157.29170079,0.00010317,2]
[332898529,1721659833075,-504.95429583,0.00010317,2]
[332898530,1721659833149,-337.75400338,0.00010317,2]
[332898531,1721659833159,-674.31054367,0.00010317,2]
[332898532,1721659833170,-377.86782155,0.00010317,2]
[332898533,1721659833607,-1001.3484,0.00010317,2]
[332898534,1721659833644,-1041.04,0.00010317,2]
[332898535,1721659833656,-2007.456,0.00010317,2]
[332898536,1721659833699,-512.87534637,0.00010317,2]
[332898537,1721659837840,411.33715233,8.898e-05,2]
[332898542,1721659838382,-18285.10188841,0.00010317,2]
[332898543,1721659838393,-10000.0,0.00010317,2]
[332898544,1721659838403,-250.0,0.00010634,2]
[332898545,1721659838413,-150.0,0.00010767,2]
[332898546,1721659838422,-414.01891517,0.00010785,2]
[332898547,1721659838432,-539.02654818,0.00010785,2]
[332898548,1721659838444,-195.02552411,0.00010785,2]
[332898549,1721659838455,-269.19545097,0.00010785,2]
[332898550,1721659838465,-217.0308726,0.00010785,2]
[332898551,1721659838475,-293.19243531,0.00010785,2]
[332898552,1721659838485,-155.99397924,0.00010785,2]
[332898553,1721659838495,-890.85720905,0.00010785,2]
[332898554,1721659838504,-155.0,0.00010785,2]
[332898555,1721659838514,-250.0,0.00010791,2]
[332898556,1721659838523,-1547.96,0.00010859,2]
[332898557,1721659838533,-169.0,0.0001086,2]
[332898558,1721659838543,-177.51,0.00010865,2]
[332898559,1721659838552,-271.68,0.00010959,2]
[332898560,1721659838562,-1457.98996012,0.00010996,2]
[332898561,1721659838572,-374.00461055,0.00011105,2]
[332898562,1721659838582,-155.0,0.00011105,2]
[332898563,1721659838592,-414.02819189,0.00011105,2]
[332898564,1721659838601,-388.94082843,0.00011105,2]
[332898565,1721659838612,-384.79,0.00011161,2]
[332898566,1721659838622,-38445.17,0.00011161,2]
[332898567,1721659838631,-304.02,0.00011161,2]
[332898569,1721659838641,-22630.61502022,0.00011186,2]
[332898571,1721659838650,-28088.56246171,0.00011186,2]
[332898573,1721659838660,-759.48731365,0.00011206,2]
[332898575,1721659838670,-171.36,0.00011296,2]
[332898577,1721659838680,-1500.0,0.00011321,2]
[332898579,1721659838689,-270.14625122,0.00011322,2]
[332898581,1721659838699,-519.51657514,0.00011324,2]
[332898583,1721659838708,-420.0,0.00011344,2]
[332898585,1721659838718,-254.76158442,0.00011384,2]
[332898587,1721659838728,-1855.326857,0.00011548,2]
[332898589,1721659838737,-1000.0,0.00011606,2]
[332898591,1721659838747,-306.17,0.0001168,2]
[332898592,1721659838756,-17.2722696,0.0001168,2]
[332898595,1721659838768,-1299.5345304,0.0001168,2]
[332898597,1721659838777,-198.85682089,0.00011692,2]
[332898602,1721659838820,-1656.47003611,0.00011692,2]
[332898604,1721659838829,-55548.04529966,0.0001178,2]
[332898606,1721659838840,-264.24,0.0001178,2]
[332898608,1721659838851,-796.44791203,0.0001178,2]
[332898610,1721659838863,-1698.02186945,0.0001178,2]
[332898615,1721659838897,-4018.91771306,0.0001178,2]
[332898617,1721659838908,-25522.57442208,0.0001178,2]
[332898621,1721659838949,-408.66224937,0.0001178,2]
[332898624,1721659838960,-11743.09053435,0.0001178,2]
[332898626,1721659838970,-1000.0,0.0001178,2]
[332898627,1721659838979,-1216.69426,0.0001178,2]
[332898629,1721659838989,-9536.7381,0.00011796,2]
[332898631,1721659838998,-500.0,0.000118,2]
[332898633,1721659839007,-317.37,0.00011808,3]
[332898635,1721659839016,-1855.326857,0.00011837,2]
[332898637,1721659839026,-155.0,0.0001185,2]
[332898638,1721659839035,-191.68647548,0.00011896,2]
[332898640,1721659839044,-18124.51496166,0.000119,2]
[332898782,1721659840377,-175325.66195999,0.000119,2]
[332898813,1721659840667,-669.88,0.000119,2]
[332898919,1721659841676,-1082.96008369,0.000119,2]
[332898922,1721659841687,-9379.69244587,0.000119,2]
[332898962,1721659843035,-520.99063048,0.000119,2]
[332898963,1721659843046,-2052.22289486,0.000119,2]
[332898981,1721659843679,-254.76158442,0.00011384,2]
[332898982,1721659843689,-2438.87154071,0.000119,2]
[332898983,1721659843700,-665.98179941,0.000119,2]
[332898989,1721659846453,-1106.89337018,0.000119,2]
[332898990,1721659846465,-5694.90227695,0.000119,2]
[332898993,1721659907433,5241.66332375,8.898e-05,2]
[332898994,1721659908952,964.43366721,8.898e-05,2]
[332898995,1721659974388,411.33715233,8.898e-05,2]
[332898999,1721660033786,1000.00008594,0.00025,120]
[332899000,1721660067355,411.33715233,8.898e-05,2]
[332899001,1721660068261,372.61,8.718e-05,2]
[332899002,1721660113365,1952.00209021,0.00025,120]
[332899003,1721660128819,1000.0,0.00025,120]
[332899004,1721660135698,1000.0,0.00025,120]
[332899005,1721660153335,411.33715233,8.718e-05,2]
[332899006,1721660262351,411.33715233,8.718e-05,2]
[332899007,1721660357585,411.33715233,8.718e-05,2]
[332899008,1721660430942,212.37945096,8.718e-05,2]
[332899012,1721660652902,54650.0,0.00025,120]
[332899013,1721660712341,353.97,8.399e-05,2]
[332899043,1721661031454,-692.30085807,0.00010079,2]
[332899044,1721661031464,-300.0,0.00010179,2]
[332899045,1721661031473,-2701.6301558,0.0001018,2]
[332899046,1721661031482,-1255.6296301,0.0001018,2]
[332899047,1721661031492,-303.05198797,0.0001018,2]
[332899048,1721661031501,-521.82541979,0.0001018,2]
[332899049,1721661031510,-23900.0,0.00010317,2]
[332899050,1721661031519,-1852.42,0.00010317,2]
[332899051,1721661031528,-1000.0,0.000104,2]
[332899052,1721661031537,-2244.84,0.00010404,2]
[332899053,1721661031547,-2713.19,0.00010409,2]
[332899054,1721661031556,-250.0,0.00010417,2]
[332899055,1721661031566,-250.0,0.00010418,2]
[332899056,1721661031575,-883.3,0.00010544,2]
[332899057,1721661031584,-150.0,0.00010566,2]
[332899058,1721661031594,-525.50769677,0.00010567,2]
[332899059,1721661031603,-1047.6287417,0.00010567,2]
[332899060,1721661031617,-165.92746,0.00010567,2]
[332899061,1721661031627,-890.85720905,0.00010567,2]
[332899062,1721661031636,-210.02763994,0.00010567,2]
[332899063,1721661031645,-347.17091063,0.00010567,2]
[332899064,1721661031654,-292.8508111,0.00010567,2]
[332899065,1721661031664,-3598.42696385,0.00010567,2]
[332899066,1721661031805,-2003.49,0.00010567,2]
[332899067,1721661032986,-10555.2770284,0.00010567,2]
[332899068,1721661032997,-529.24457597,0.00010567,2]
[332899069,1721661033008,-376.37542403,0.00010567,2]
[332899070,1721661033019,-25512.43825398,0.00010567,2]
[332899071,1721661033030,-585.71087622,0.00010567,2]
[332899072,1721661033042,-401.78949504,0.00010567,2]
[332899073,1721661033053,-33389.5,0.00010567,2]
[332899084,1721661038396,-999.48500001,0.00010567,2]
[332899085,1721661038408,-283.83287331,0.00010567,2]
[332899086,1721661038419,-7555.71861903,0.00010567,2]
[332899088,1721661039613,-3342.9,0.00010567,2]
[332899089,1721661039629,-3142.91921805,0.00010567,2]
[332899090,1721661039744,-1876.39656792,0.00010567,2]
[332899095,1721661042757,-5870.33741566,0.00010567,2]
[332899096,1721661042769,-62966.21138268,0.00010567,2]
[332899097,1721661042780,-15465.83572081,0.00010567,2]
[332899147,1721661045754,-6673.9,0.00010567,2]
[332899149,1721661045766,-1046.89906254,0.00010567,2]
[332899152,1721661045777,-1344.41307,0.00010567,2]
[332899154,1721661045789,-2406.6105776,0.00010567,2]
[332899156,1721661045801,-302.14186907,0.00010567,2]
[332899196,1721661047077,-333.76,0.00010567,2]
[332899197,1721661047088,-1235.28589839,0.00010567,2]
[332899198,1721661047100,-1826.08394685,0.00010567,2]
[332899199,1721661047111,-2191.19353664,0.00010567,2]
[332899200,1721661047123,-1164.53,0.0001059,2]
[332899201,1721661047132,-353.97,0.00010663,2]
[332899202,1721661047141,-53.6873438,0.00010682,2]
[332899203,1721661047165,-1930.7226562,0.00010682,2]
[332899204,1721661047174,-499.99,0.00010685,2]
[332899205,1721661047183,-1114.4,0.00010685,2]
[332899206,1721661047193,-14076.43172785,0.00010785,2]
[332899207,1721661047202,-155.0,0.00010785,2]
[332899208,1721661047212,-159.17830672,0.00010785,2]
[332899209,1721661047221,-529.59050397,0.00010785,2]
[332899210,1721661047231,-6618.11483938,0.00010785,2]
[332899211,1721661047240,-155.0,0.00010785,2]
[332899212,1721661047249,-414.02819189,0.00010785,2]
[332899213,1721661047259,-191.68647548,0.00010785,2]
[332899214,1721661047268,-519.51657514,0.00010785,2]
[332899215,1721661047278,-202.63817161,0.00010785,2]
[332899216,1721661047287,-200.36687278,0.00010785,2]
[332899217,1721661047296,-300.0,0.000109,3]
[332899218,1721661047306,-155.87,0.00010959,2]
[332899219,1721661047315,-700.0,0.00011,4]
[332899220,1721661047325,-1100.0,0.000111,4]
[332899221,1721661047338,-155.0,0.00011105,2]
[332899222,1721661047348,-2206.29679381,0.00011105,2]
[332899223,1721661047358,-493.01141482,0.00011105,2]
[332899224,1721661047368,-342.13318843,0.00011105,2]
[332899225,1721661047383,-165.34952257,0.00011105,2]
[332899226,1721661047392,-203.1480285,0.00011105,2]
[332899227,1721661047402,-528.25917905,0.00011105,2]
[332899228,1721661047411,-349.14572823,0.00011105,2]
[332899229,1721661047421,-347.23007097,0.00011105,2]
[332899230,1721661047431,-155.0,0.00011105,2]
[332899231,1721661047440,-155.0,0.00011161,2]
[332899232,1721661047450,-371.51160251,0.00011161,2]
[332899233,1721661047459,-420.0,0.00011195,2]
[332899234,1721661047469,-756.92272403,0.00011199,2]
[332899235,1721661047478,-1400.0,0.000112,4]
[332899236,1721661047488,-155.0,0.00011206,2]
[332899237,1721661047498,-1800.0,0.000113,4]
[332899238,1721661047507,-156.76606447,0.00011324,2]
[332899239,1721661047518,-300.0,0.00011342,2]
[332899240,1721661047528,-5135.406,0.00011378,2]
[332899241,1721661047537,-367.38511054,0.00011384,2]
[332899242,1721661047547,-159.40015405,0.00011384,2]
[332899243,1721661047556,-300.0,0.000114,4]
[332899244,1721661047565,-300.0,0.000115,4]
[332899245,1721661047753,-169.63,0.00011523,2]
[332899246,1721661047763,-156.68402511,0.00011525,2]
[332899247,1721661047774,-1072.937949,0.00011548,2]
[332899248,1721661047784,-300.0,0.000116,4]
[332899249,1721661047794,-974.4554,0.0001168,2]
[332899250,1721661047803,-17335.0052,0.0001168,2]
[332899251,1721661047814,-1000.0,0.0001168,2]
[332899252,1721661047826,-1072.937949,0.00011692,2]
[332899253,1721661047836,-65699.84957381,0.000117,2]
[332899264,1721661150547,150.5,0.00017798,120]
[332899265,1721661151034,150.5,0.00017788,120]
[332899266,1721661151099,150.5,0.00017798,120]
[332899267,1721661151491,150.5,0.00017778,120]
[332899268,1721661151881,295.5,0.00017788,120]
[332899269,1721661152030,150.5,0.00017798,120]
[332899270,1721661152548,150.5,0.00017788,120]
[332899271,1721661153027,150.5,0.00017778,120]
[332899272,1721661153572,150.5,0.00017798,120]
[332899273,1721661154116,225.92,0.00017788,120]
[332899274,1721661303649,266.80923603,0.00025,120]
[332899275,1721661439707,1000.0,0.00025,120]
[332899276,1721661473034,151.0,0.00020469,120]
[332899277,1721661501143,448.09,8.49e-05,2]
[332899281,1721661785798,-6562.6864008,9.981e-05,2]
[332899282,1721661785820,-300.0,0.0001008,2]
[332899283,1721661785842,-447.6968,0.00010081,2]
[332899284,1721661785863,-2587.6068,0.00010081,2]
[332899285,1721661785886,-4471.12790684,0.0001018,2]
[332899286,1721661785907,-1022.4396916,0.0001018,2]
[332899287,1721661785929,-1352.26,0.0001022,2]
[332899288,1721661785951,-500.0,0.00010251,2]
[332899289,1721661785977,-248.51,0.00010285,2]
[332899290,1721661785998,-992.85597028,0.00010291,2]
[332899291,1721661786019,-3624.23662992,0.00010291,2]
[332899292,1721661786039,-374.55068035,0.00010291,2]
[332899293,1721661786064,-196.8588838,0.00010291,2]
[332899294,1721661786085,-156.53166025,0.00010291,2]
[332899295,1721661786107,-2774.99,0.00010304,2]
[332899296,1721661786129,-200.0,0.00010304,2]
[332899297,1721661786152,-1081.18,0.00010317,2]
[332899298,1721661786173,-250.0,0.00010317,2]
[332899299,1721661786194,-150.99,0.00010317,2]
[332899300,1721661786214,-150.99,0.00010317,2]
[332899301,1721661786235,-150.0,0.00010437,2]
[332899302,1721661786256,-23900.0,0.00010438,2]
[332899303,1721661786277,-796.69,0.0001066,2]
[332899304,1721661786298,-228.74,0.00010693,2]
[332899305,1721661786320,-448.09,0.00010754,2]
[332899306,1721661786341,-178.44,0.00010779,2]
[332899307,1721661786361,-2631.03,0.00010833,2]
[332899308,1721661786382,-999.99,0.00010914,2]
[332899309,1721661786404,-250.0,0.00010959,2]
[332899310,1721661786426,-1955.44,0.00010959,2]
[332899311,1721661786446,-2685.78,0.00010959,2]
[332899312,1721661786467,-1479.7,0.00010959,2]
[332899313,1721661786491,-150.0,0.00010959,2]
[332899314,1721661786511,-4754.59505787,0.00010996,2]
[332899315,1721661786533,-150.0,0.00011068,2]
[332899316,1721661786555,-150.0,0.00011068,2]
[332899317,1721661786577,-420.0,0.00011087,2]
[332899318,1721661786599,-155.16469137,0.00011105,2]
[332899319,1721661786620,-1632.38014955,0.00011105,2]
[332899320,1721661786641,-155.0,0.00011105,2]
[332899321,1721661786665,-155.22321172,0.00011105,2]
[332899322,1721661786687,-15461.81890924,0.00011105,2]
[332899323,1721661786708,-158.07088294,0.00011105,2]
[332899324,1721661786733,-5396.87761256,0.00011105,2]
[332899325,1721661786755,-155.0,0.00011161,2]
[332899326,1721661786776,-10529.6761025,0.00011186,2]
[332899327,1721661786798,-12988.56,0.00011195,2]
[332899328,1721661786821,-299.99,0.00011195,2]
[332899329,1721661786843,-2837.55930766,0.00011206,2]
[332899330,1721661786866,-2206.29679381,0.00011324,2]
[332899331,1721661786888,-255.0,0.0001146,2]
[332899332,1721661786911,-7005.0,0.00011547,2]
[332899333,1721661786933,-13996.71379828,0.0001159,2]
[332899334,1721661786957,-200.0,0.00011592,2]
[332899335,1721661786983,-4983.6037,0.000116,2]
[332899336,1721661787005,-245.1313,0.000116,2]
[332899337,1721661787027,-1513.91188,0.0001162,2]
[332899338,1721661787053,-4559.15042619,0.000117,2]
[332899339,1721661787078,-300.0,0.000117,4]
[332899340,1721661787102,-47960.3338,0.000117,2]
[332899341,1721661787125,-1000.0,0.000117,2]
[332899342,1721661787147,-499.99,0.0001179,2]
[332899343,1721661787169,-22256.5951953,0.0001179,2]
[332899344,1721661787193,-850.0,0.000118,4]
[332899345,1721661787218,-85028.1561,0.000118,2]
[332899346,1721661787240,-1000.6278,0.000118,2]
[332899347,1721661787264,-878.5719,0.000118,2]
[332899348,1721661787287,-2325.2692,0.000118,2]
[332899349,1721661787312,-1000.0,0.000118,2]
[332899350,1721661787335,-2756.7848,0.000118,2]
[332899351,1721661787359,-7500.0,0.000118,2]
[332899352,1721661787382,-1216.1253,0.000118,2]
[332899353,1721661787404,-1175.47243045,0.000118,2]
[332899354,1721661787426,-1072.937949,0.00011837,2]
[332899355,1721661787448,-155.0,0.0001185,2]
[332899356,1721661787470,-200.41286543,0.0001189,2]
[332899357,1721661787492,-63336.6370777,0.00011893,2]
[332899358,1721661787514,-986.7384164,0.00011893,2]
[332899359,1721661787535,-685.08642592,0.00011897,2]
[332899360,1721661787561,-15828051.12549227,0.000119,2]
[332899363,1721661902871,151.0,0.00020469,120]
[332899364,1721661913201,150.5,0.00017798,120]
[332899365,1721661913755,153.61,0.00017798,120]
[332899366,1721661913922,150.5,0.00017788,120]
[332899367,1721661915022,150.5,0.00017778,120]
[332899368,1721661915818,150.5,0.00017798,120]
[332899369,1721661916450,150.5,0.00017788,120]
[332899370,1721661916927,150.5,0.00017778,120]
[332899371,1721661917456,150.5,0.00017798,120]
[332899372,1721661918092,150.5,0.00017788,120]
[332899373,1721661918670,272.74,0.00017798,120]
[332899374,1721661920635,6790.57010302,9e-05,2]
[332899375,1721661955389,7375.27752799,6.94e-05,2]
[332899379,1721662038608,265.54211407,8.412e-05,2]
[332899380,1721662041843,270.01542758,8.412e-05,2]
[332899385,1721662092714,403.28,8.67e-05,2]
[332899404,1721662222578,11837.31080048,8.67e-05,2]
[332899428,1721662231669,-396.48017172,0.0001,2]
[332899429,1721662231681,-3106.0090687,0.0001,2]
[332899430,1721662231852,-1338.46,0.0001,2]
[332899448,1721662237789,-425.54702192,0.0001,2]
[332899449,1721662237801,-520.41262445,0.0001,2]
[332899450,1721662237811,-300.0,0.00010195,2]
[332899451,1721662237820,-51.54737555,0.00010291,2]
[332899452,1721662237832,-483.38657248,0.00010291,2]
[332899453,1721662237841,-191.85217756,0.00010509,2]
[332899454,1721662237851,-47.30874206,0.00010509,2]
[332899455,1721662237902,-127.97016726,0.00010509,2]
[332899456,1721662237914,-880.0,0.0001054,2]
[332899457,1721662237924,-2783.49797502,0.00010588,2]
[332899458,1721662237949,-695.62449941,0.00010588,2]
[332899459,1721662239491,-20420.87752557,0.00010588,2]
[332899460,1721662239500,-270.26045869,0.00010701,2]
[332899461,1721662239510,-196.56350179,0.000109,2]
[332899462,1721662239519,-403.28,0.00010934,2]
[332899463,1721662239529,-150.0,0.00010959,2]
[332899464,1721662239539,-343.65452861,0.00011,2]
[332899502,1721662240074,-354.55181474,0.00011,2]
[332899503,1721662240089,-2939.86563049,0.00011,2]
[332899504,1721662240100,-470.73536654,0.00011,2]
[332899507,1721662240146,-2535.99913761,0.00011,2]
[332899508,1721662240157,-3575.1464,0.0001106,2]
[332899510,1721662240167,-150.0,0.00011066,2]
[332899512,1721662240176,-150.0,0.00011068,2]
[332899514,1721662240185,-521.82541979,0.00011161,2]
[332899515,1721662240195,-506.42315575,0.00011161,2]
[332899516,1721662240205,-648.36921594,0.00011161,2]
[332899518,1721662240214,-155.37798273,0.00011161,2]
[332899520,1721662240224,-22630.61502022,0.00011186,2]
[332899522,1721662240233,-494.46139987,0.00011186,2]
[332899523,1721662240243,-367.38511054,0.00011186,2]
[332899525,1721662240254,-349.14572823,0.00011186,2]
[332899527,1721662240263,-167.10937164,0.00011206,2]
[332899529,1721662240273,-156.3645126,0.00011206,2]
[332899531,1721662240283,-159.40015405,0.00011206,2]
[332899532,1721662240292,-202.63817161,0.00011206,2]
[332899533,1721662240302,-420.0,0.00011212,2]
[332899534,1721662240311,-196.56350179,0.00011284,2]
[332899535,1721662240320,-347.23007097,0.00011322,2]
[332899536,1721662240330,-155.0,0.00011322,2]
[332899537,1721662240340,-347.23007097,0.00011322,2]
[332899538,1721662240349,-155.0,0.00011322,2]
[332899539,1721662240359,-155.0,0.00011322,2]
[332899540,1721662240369,-289.35746755,0.00011324,2]
[332899541,1721662240379,-155.0,0.00011324,2]
[332899542,1721662240388,-342.13318843,0.00011324,2]
[332899543,1721662240398,-1993.0,0.00011393,2]
[332899544,1721662240409,-150.681,0.00011393,2]
[332899545,1721662240418,-12416.78622272,0.000114,2]
[332899546,1721662242809,-549.0,0.00011393,2]
[332899547,1721662242819,-3282.0,0.00011393,2]
[332899548,1721662242828,-2521.75747991,0.000114,2]
[332899549,1721662242839,-14711.96274049,0.000114,2]
[332899575,1721662248183,-98.86949352,0.000114,2]
[332899579,1721662334304,151.0,0.00020469,120]
[332899584,1721662423955,409.51,0.00025,120]
[332899588,1721662622894,1074.78,0.0002415,120]
[332899589,1721662639750,151.0,0.0001945,120]
[332899591,1721662898977,458.47,8.394e-05,2]
[332899592,1721662946135,9569.81241365,8.394e-05,2]
[332899594,1721662960513,151.0,0.00020469,120]
[332899607,1721663344530,-159.09090106,0.00010231,2]
[332899608,1721663344553,-704.0,0.0001026,2]
[332899609,1721663344575,-189.06,0.00010331,2]
[332899610,1721663344597,-500.0,0.00010383,2]
[332899611,1721663344618,-250.0,0.00010581,2]
[332899612,1721663344640,-296.0,0.00010597,2]
[332899613,1721663344661,-150.0,0.00010658,2]
[332899614,1721663344682,-458.47,0.00010658,2]
[332899615,1721663344703,-10424.00909894,0.00010684,2]
[332899619,1721663360034,-10000.0,0.00010684,2]
[332899629,1721663432186,-250.0,0.00010399,2]
[332899630,1721663432195,-466.59388063,0.00010413,2]
[332899631,1721663432207,-1931.16017973,0.00010413,2]
[332899632,1721663432234,-21502.24593964,0.00010413,2]
[332899633,1721663432243,-8086.1433,0.00010484,2]
[332899634,1721663432253,-2416.15775328,0.00010684,2]
[332899635,1721663432262,-412.45599061,0.00010684,2]
[332899636,1721663432272,-150.0,0.00010701,2]
[332899637,1721663432281,-157.81,0.00010731,2]
[332899638,1721663432291,-299.99,0.00010731,2]
[332899639,1721663432301,-499.99,0.00010731,2]
[332899640,1721663432310,-157.81,0.00010748,2]
[332899641,1721663432321,-999.99,0.00010748,2]
[332899642,1721663432330,-157.81,0.00010766,2]
[332899643,1721663432340,-168.73,0.00010769,2]
[332899644,1721663432349,-600.0,0.00010769,2]
[332899645,1721663432363,-157.81,0.00010784,2]
[332899646,1721663432373,-150.0,0.00010959,2]
[332899647,1721663432383,-188.85,0.00010982,2]
[332899648,1721663432393,-363.3224,0.00011086,2]
[332899649,1721663432402,-150.0,0.00011104,2]
[332899650,1721663432411,-218.62689075,0.00011105,2]
[332899651,1721663432420,-164.16368829,0.00011105,2]
[332899652,1721663432431,-1073.31104613,0.00011105,2]
[332899653,1721663432441,-7782.68978005,0.00011105,2]
[332899655,1721663432453,-1476.12570682,0.00011105,2]
[332899657,1721663432463,-692.53782461,0.00011105,2]
[332899658,1721663432472,-5521.42600838,0.00011185,2]
[332899659,1721663432483,-11129.04278784,0.00011186,2]
[332899660,1721663432494,-576.41012845,0.00011186,2]
[332899661,1721663432523,-13421.8,0.00011186,2]
[332899662,1721663432534,-164.74213427,0.00011186,2]
[332899663,1721663432544,-1342.52469282,0.00011186,2]
[332899664,1721663432556,-608.42001,0.00011186,2]
[332899665,1721663432567,-581.06799919,0.00011186,2]
[332899666,1721663432579,-25556.5497597,0.00011186,2]